Cogmind - Beta 16 @@@ ROGUE MODE // 2026.01.03 @ 23:25:14 Player: beans Result: Destroyed by G-50 Soldier with Heavy Laser Performance ------------- Evolutions (4) 2000 Regions Visited (12) 2400 Robots Destroyed (106) 530 Value Destroyed (3411) 3411 Prototype IDs (8) 160 Alien Tech Used (0) 0 Bonus (1254) 1254 TOTAL SCORE: 9755 Bonus ------- High Alert Combat Kills 100 Follower Combat Kills 1038 Entered Garrisons 200 Friendly Fire -84 Cogmind --------- Core Integrity 0/850 Matter 14/300 Energy 99/100 System Corruption 37% Temperature Cool (27) Movement Core (50) Location -6/Extension Parts ------- > --- POWER (2) -------- (None) > --- PROPULSION (4) --- (None) > --- UTILITY (5) ------ Armor Integrity Analyzer Authchip [R/Combat] > --- WEAPON (4) ------- (None) > --- INVENTORY (5) ---- Antimatter Reactor Gamma Rifle Rocket Array Rocket Array Peak State ------------ > --- POWER ------------ Backup Power III Backup Power III > --- PROPULSION ------- Cesium-ion Thruster Cesium-ion Thruster Cooled Cesium-ion Thruster > --- UTILITY ---------- Improved Cooling System Backup Plating III Authchip [R/Combat] Authchip [R/Combat] > --- WEAPON ----------- Bore Cannon Bore Cannon Carbide Saw > --- INVENTORY -------- Antimatter Reactor Heavy Battle Rifle Rocket Array Rocket Array [Rating: 50] Favorites ----------- Power Ion Engine Engine Ion Engine Reactor Antimatter Reactor Propulsion Armored Treads Treads Armored Treads Leg Enhanced Armored Leg Hover Unit Backup Propulsion III Flight Unit Cesium-ion Thruster Utility Large Storage Unit Device Heat Sink Storage Large Storage Unit Processor Armor Integrity Analyzer Hackware Authchip [R/Combat] Protection Backup Plating III Weapon Improved Light Cannon Energy Gun Gamma Rifle Energy Cannon Beam Cannon Ballistic Gun Minigun Ballistic Cannon Improved Light Cannon Launcher Rocket Array Slashing Weapon Carbide Saw Build | -11 -10 -9 -8 -7 -7 -7 -7 -7 -6 -6 -6 -6 ------- Run | Yrd Mat Mat Mat Fac Was Fac Gar Fac Fac Was Fac Ext Slots Evolved 8 | . . 2 2 2 . . . . 2 . . . Power 1 | . . . . 1 . . . . . . . . Propulsion 2 | . . . 1 . . . . . 1 . . . Utility 3 | . . 1 1 . . . . . 1 . . . Weapon 2 | . . 1 . 1 . . . . . . . . Parts Attached 70 | 6 4 15 5 12 11 3 3 . 1 2 8 . Power 8 | 1 1 2 . 1 2 . . . . . 1 . Engine 7 | 1 1 2 . 1 1 . . . . . 1 . Core . | . . . . . . . . . . . . . Reactor 1 | . . . . . 1 . . . . . . . Propulsion 15 | 2 . 3 1 . 4 . . . . . 5 . Treads 5 | 2 . 2 1 . . . . . . . . . Leg 1 | . . . . . 1 . . . . . . . Wheel . | . . . . . . . . . . . . . Hover 3 | . . 1 . . . . . . . . 2 . Flight 6 | . . . . . 3 . . . . . 3 . Utility 18 | 1 2 3 4 2 2 . 2 . 1 1 . . Device 7 | . . 2 1 2 2 . . . . . . . Storage 4 | 1 1 . 2 . . . . . . . . . Processor 2 | . . . . . . . . . 1 1 . . Hackware 2 | . . . . . . . 2 . . . . . Protection 3 | . 1 1 1 . . . . . . . . . Artifact . | . . . . . . . . . . . . . Weapon 29 | 2 1 7 . 9 3 3 1 . . 1 2 . Energy Gun 4 | . . 1 . 2 . . . . . . 1 . Energy Cannon 5 | . . 3 . 1 1 . . . . . . . Ballistic Gun 4 | 2 . . . 1 . 1 . . . . . . Ballistic Cannon 12 | . 1 3 . 4 1 1 . . . 1 1 . Launcher 3 | . . . . 1 . 1 1 . . . . . Special Weapon . | . . . . . . . . . . . . . Impact Weapon . | . . . . . . . . . . . . . Slashing Weapon 1 | . . . . . 1 . . . . . . . Piercing Weapon . | . . . . . . . . . . . . . Special Melee Weapon . | . . . . . . . . . . . . . Unidentified Prototypes 8 | . . 3 . . 3 1 . . . 1 . . Corrupted Parts 6 | . . 3 . . . . . . . . 3 . System Corruption 40 | . . 18 . . . . . . . . 22 . Parts Lost 37 | . 1 . . 13 1 2 1 3 5 1 6 4 Power 8 | . 1 . . 3 . 1 . 1 1 . . 1 Propulsion 10 | . . . . 1 . . 1 . 1 1 3 3 Utility 10 | . . . . 5 . 1 . 2 . . 2 . Weapon 9 | . . . . 4 1 . . . 3 . 1 . Highest Loss Streak 7 | . 1 . . 7 1 1 1 3 5 1 5 4 To Critical Strikes . | . . . . . . . . . . . . . Average Backups 8 | . 1 11 13 13 4 4 4 4 3 4 4 4 Power . | . . . 1 . . 1 1 1 1 1 1 1 Propulsion 2 | . . 4 5 5 1 . . . . . . . Utility 1 | . 1 2 3 4 . . . . . . . . Weapon 2 | . . 4 3 2 2 3 3 3 2 3 2 3 Tool/Special . | . . . . . . . . . . . . . Unused Backups 10 | . . . . 7 1 1 . . . 1 . . Power . | . . . . . . . . . . . . . Propulsion 4 | . . . . 3 1 . . . . . . . Utility 2 | . . . . 2 . . . . . . . . Weapon 3 | . . . . 1 . 1 . . . 1 . . Tool/Special 1 | . . . . 1 . . . . . . . . Average Slot Usage (%) 73 | . 84 93 99 85 34 63 76 78 41 40 36 32 Engine 8 | . 9 10 9 11 6 14 15 12 2 . . 4 Treads 13 | . 28 21 27 20 . . . . . . . . Flight 5 | . . . . . 13 23 21 15 8 6 6 14 Device 8 | . . 12 11 13 1 7 7 7 6 6 4 . Storage 8 | . 14 11 15 13 2 2 . . . . . . Processor 1 | . . . . . . . . . . 12 11 6 Hackware 1 | . . . . . . . 4 13 6 6 6 6 Protection 3 | . 3 9 8 . 2 3 7 5 . . . . Energy Cannon 3 | . . 25 . 2 . . . . . . . . Ballistic Gun 2 | . 19 . . 2 3 4 3 . 3 1 . . Ballistic Cannon 11 | . 8 1 27 19 2 7 10 15 5 . . . Peak Build Rating 50 | 6 7 19 30 47 36 39 50 47 41 38 46 29 Average Rating 27 | 4 5 14 26 33 18 33 41 44 28 34 33 21 On Entrance 23 | . 6 7 19 28 1 32 36 47 37 27 35 29 Avg Prop Armor Cover (%) 5 | . . 12 . . . . . . 5 7 . . Naked Turns 140 | . . . . 129 11 . . . . . . . Heaviest Build 60 | 10 30 40 47 60 16 24 29 29 32 9 29 10 Greatest Support 60 | 40 40 40 60 60 16 19 19 14 14 9 18 18 Greatest Overweight (x) 9 | . . 4 . 1 4 1 2 2 7 1 9 1 Average Overweight (x) . | . . . . . . . 1 1 . . . . Largest Inventory Capacity 15 | 8 15 15 15 15 5 5 5 5 5 5 5 5 Average Capacity 10 | 5 9 15 15 13 5 5 5 5 5 5 5 5 Most Carried 15 | 4 5 15 15 15 5 5 5 4 5 5 5 4 Average Carried 8 | . 1 11 13 13 4 4 4 4 3 4 4 4 Final Capacity 15 | 8 15 15 15 5 5 5 5 5 5 5 5 5 Final Carried 15 | . 4 15 15 5 5 5 4 4 5 5 4 4 Class Distribution -------------------- 46% | Mutant 17% | Tank 14% | Gunner 12% | Sprinter 9% | Scavenger-Gunner Dominant Class ---------------- Mutant | -10/Materials Mutant | -9/Materials Tank | -8/Materials Gunner | -7/Factory Sprinter | -7/Waste Sprinter | -7/Factory Mutant | -7/Garrison Mutant | -7/Factory Mutant | -6/Factory Mutant | -6/Waste Mutant | -6/Factory Sprinter | -6/Extension Resources | -11 -10 -9 -8 -7 -7 -7 -7 -7 -6 -6 -6 -6 ----------- Run | Yrd Mat Mat Mat Fac Was Fac Gar Fac Fac Was Fac Ext Matter Collected 3475 | 183 171 508 659 685 251 105 179 77 270 387 . . Remotely . | . . . . . . . . . . . . . Salvage Created 4495 | . 249 629 791 742 . 241 126 32 284 1317 84 . Parts 193 | . 24 40 44 45 . 13 3 . 19 4 1 . Haulers Intercepted 6 | . . 1 3 1 . 1 . . . . . . Recyclers Shooed 5 | . 3 . 2 . . . . . . . . . Parts Field Recycled . | . . . . . . . . . . . . . Retrieved Matter . | . . . . . . . . . . . . . Parts Self-Destructed . | . . . . . . . . . . . . . Prevented . | . . . . . . . . . . . . . Parts Restored . | . . . . . . . . . . . . . Kills | -11 -10 -9 -8 -7 -7 -7 -7 -7 -6 -6 -6 -6 ------- Run | Yrd Mat Mat Mat Fac Was Fac Gar Fac Fac Was Fac Ext Combat Hostiles Destroyed 75 | . 8 8 15 20 . 3 2 2 8 6 3 . Guns 8 | . 4 . . 1 . 1 1 . 1 . . . Cannons 51 | . 4 7 15 17 . 2 1 2 3 . . . AOE 16 | . . 1 . 2 . . . . 4 6 3 . Classes Destroyed 15 | . 3 6 2 2 . . . . 1 1 . . Worker 5 | . . 1 2 2 . . . . . . . . Builder 4 | . 1 . . 1 . . . . 2 . . . Hauler 6 | . . 1 3 1 . 1 . . . . . . Recycler 7 | . . 1 5 . . 1 . . . . . . Mechanic 2 | . . . 1 1 . . . . . . . . Watcher 6 | . . 2 2 2 . . . . . . . . Swarmer 17 | . 3 . 7 3 . . . . 4 . . . Grunt 27 | . 5 2 3 10 . 2 1 . 1 . 3 . Brawler 2 | . . 1 . . . . . 1 . . . . Sentry 14 | . . 5 4 2 . 1 1 1 . . . . Specialist 2 | . . . . 2 . . . . . . . . Hunter 3 | . . . 1 . . . 1 . 1 . . . Programmer 4 | . . . . 3 . . . . 1 . . . Behemoth 1 | . . . . . . . . . 1 . . . Compactor 6 | . . . . . . . . . . 6 . . Best Kill Streak 7 | . 6 4 4 4 . 4 1 2 7 6 3 . Combat Bots Only 6 | . 5 3 3 4 . 1 1 2 5 6 3 . Max Kills in Single Turn 5 | . 1 1 2 2 . 1 1 2 5 2 2 . Gunslinging . | . . . . . . . . . . . . . Exploded 4 | . . 1 . 1 . . . . 4 2 2 . Melee . | . . . . . . . . . . . . . Uniques/NPCs Destroyed . | . . . . . . . . . . . . . Combat | -11 -10 -9 -8 -7 -7 -7 -7 -7 -6 -6 -6 -6 -------- Run | Yrd Mat Mat Mat Fac Was Fac Gar Fac Fac Was Fac Ext Hostile Shots Fired 673 | . 97 30 79 232 . 17 3 19 62 . 80 54 Missed 277 | . 32 17 23 89 . 7 1 8 22 . 47 31 Hits 396 | . 65 13 56 143 . 10 2 11 40 . 33 23 Melee 2 | . . . . . . . . 2 . . . . Projectile 394 | . 65 13 56 143 . 10 2 9 40 . 33 23 AOE 1 | . . . . 1 . . . . . . . . Critical Strikes 9 | . . 1 2 2 . 1 . . 1 . . 2 Part Disruptions 1 | . . . . 1 . . . . . . . . Damage Taken 6208 | . 611 196 542 2393 16 244 141 111 752 119 610 473 Core 1702 | . 146 16 33 589 1 23 26 12 160 57 348 291 Absorbed by Shields . | . . . . . . . . . . . . . Redirected to Shielding 5 | . . 5 . . . . . . . . . . Regen/Repaired (Parts) 633 | . . . . 254 69 28 82 20 180 . . . Core Remaining (%) 67 | 100 41 96 94 . . . . 7 . . . . Volleys Fired 279 | . 38 39 54 57 16 15 15 7 24 10 4 . Largest 4 | . 2 3 3 4 1 2 2 2 3 1 1 . Hottest 180 | . 50 180 99 156 100 96 96 96 129 45 70 . Shots Fired 630 | . 76 92 157 175 16 25 22 14 35 12 6 . Gun 134 | . 59 . . 27 15 7 12 . 14 . . . Cannon 479 | . 17 92 157 147 1 18 10 14 20 . 3 . Launcher 17 | . . . . 1 . . . . 1 12 3 . Special . | . . . . . . . . . . . . . Kinetic 506 | . 76 . 157 160 15 25 22 14 34 . 3 . Thermal 101 | . . 92 . 9 . . . . . . . . Explosive 17 | . . . . 1 . . . . 1 12 3 . Electromagnetic 6 | . . . . 5 1 . . . . . . . Robot Hit Streak 20 | . 6 7 12 20 9 4 1 2 9 7 5 . Robot Miss Streak 7 | . 7 4 5 5 2 2 3 4 5 2 2 . Penetration Max 1 | . . . . . . 1 . 1 . . . . Secondary Targets 3 | . 3 . . . . . . . . . . . Max Gunslinging Chain 1 | . 1 . . . . . . . . . . . Shots Hit Robots 308 | . 40 47 72 92 12 14 3 6 13 7 2 . Core Hits 179 | . 15 19 34 49 2 8 3 2 15 22 10 . Critical Kills 10 | . . . . . . 3 2 2 3 . . . Critical Parts Destroyed 11 | . . . . . . 4 1 2 4 . . . Critical Strikes 29 | . . . 5 2 . 7 3 5 7 . . . Destroy 22 | . . . . . . 7 3 5 7 . . . Blast 7 | . . . 5 2 . . . . . . . . Melee Attacks . | . . . . . . . . . . . . . Impact . | . . . . . . . . . . . . . Slashing . | . . . . . . . . . . . . . Piercing . | . . . . . . . . . . . . . Sneak Attacks . | . . . . . . . . . . . . . Combat Hostiles . | . . . . . . . . . . . . . Follow-up Attacks . | . . . . . . . . . . . . . Damage Inflicted 10155 | . 457 905 1700 2503 203 298 134 209 555 2768 423 . Guns 902 | . 289 . . 204 200 52 40 . 117 . . . Cannons 5556 | . 168 863 1700 2074 3 246 94 209 199 . . . Explosions 3697 | . . 42 . 225 . . . . 239 2768 423 . Melee . | . . . . . . . . . . . . . Ramming . | . . . . . . . . . . . . . Kinetic 5368 | . 457 . 1700 2054 200 298 134 209 316 . . . Thermal 1117 | . . 863 . 254 . . . . . . . . Explosive 3608 | . . . . 178 . . . . 239 2768 423 . Electromagnetic 51 | . . 42 . 6 3 . . . . . . . Impact 11 | . . . . 11 . . . . . . . . Slashing . | . . . . . . . . . . . . . Piercing . | . . . . . . . . . . . . . Highest Corruption 37 | . . 18 4 2 2 3 3 7 . 14 36 37 Average Corruption 8 | . . 12 3 1 2 2 3 4 . 9 21 36 Corruption Purged . | . . . . . . . . . . . . . Corruption Blocked . | . . . . . . . . . . . . . Effects 65 | . . 2 1 . 3 3 10 5 . 6 23 12 Message Errors 17 | . . . . . . . 6 2 . . 7 2 Matter Fused 12 | . . 2 . . 2 1 . 1 . 1 4 1 Heat Flow Errors 1 | . . . . . . . . . . . 1 . Energy Discharges 5 | . . . . . . 1 1 . . 1 2 . Parts Rejected 2 | . . . . . 1 . . . . 1 . . Data Loss (minor) 3 | . . . . . . . . . . 1 2 . Data Loss (major) 3 | . . . . . . . . . . . 3 . Misfires 8 | . . . 1 . . 1 1 1 . 2 2 . Alerts 1 | . . . . . . . . . . . 1 . Misdirections 10 | . . . . . . . . . . . 1 9 Weapon Failures 3 | . . . . . . . 2 1 . . . . Overload Shots . | . . . . . . . . . . . . . Overflow Damage 73 | . . 6 14 12 . . . . . 12 29 . Projectiles 32 | . . 6 14 12 . . . . . . . . Explosions 41 | . . . . . . . . . . 12 29 . Melee . | . . . . . . . . . . . . . Knockbacks 21 | . 1 . 12 4 . 1 3 . . . . . Impact . | . . . . . . . . . . . . . Kinetic 19 | . 1 . 11 4 . 1 2 . . . . . Secondary 2 | . . . 1 . . . 1 . . . . . Self-Inflicted Damage 348 | . . 9 . . . . . . . 120 219 . Shots 14 | . . 1 . . . . . . . 5 8 . Rammed . | . . . . . . . . . . . . . Targets Rammed . | . . . . . . . . . . . . . Kicked . | . . . . . . . . . . . . . Crushed . | . . . . . . . . . . . . . Highest Temperature 467 | . 21 467 42 133 32 3 . . . . 220 205 Average Temperature 58 | . 9 102 10 41 24 3 . . . . 83 133 Received Heat Transfer 1173 | . 171 66 81 399 . 75 12 18 120 . 93 138 Effects 2 | . . 1 . . . . . . . . 1 . Interference 2 | . . 1 . . . . . . . . 1 . Siege Activations . | . . . . . . . . . . . . . Martial Activations . | . . . . . . . . . . . . . Shielding Activations . | . . . . . . . . . . . . . Robots Disrupted . | . . . . . . . . . . . . . Combat Hostiles . | . . . . . . . . . . . . . Robots Corrupted . | . . . . . . . . . . . . . Combat Hostiles . | . . . . . . . . . . . . . Parts Fried . | . . . . . . . . . . . . . Impact Corruptions . | . . . . . . . . . . . . . Robots Melted . | . . . . . . . . . . . . . Combat Hostiles . | . . . . . . . . . . . . . Parts Melted 8 | . . 6 . . . . . . 2 . . . Heat Transferred 2103 | . . 1813 . 290 . . . . . . . . Parts Sabotaged . | . . . . . . . . . . . . . Parts Stolen . | . . . . . . . . . . . . . Parts Stripped . | . . . . . . . . . . . . . Power Chain Reactions . | . . . . . . . . . . . . . Alert | -11 -10 -9 -8 -7 -7 -7 -7 -7 -6 -6 -6 -6 ------- Run | Yrd Mat Mat Mat Fac Was Fac Gar Fac Fac Was Fac Ext Maximum Alert Level 3 | . . . . 1 . 2 3 2 2 . . . Low Security (%) 79 | 100 100 100 100 98 100 40 . . 16 100 100 100 Level 1 6 | . . . . 1 . 31 20 57 18 . . . Level 2 9 | . . . . . . 27 32 42 65 . . . Level 3 3 | . . . . . . . 47 . . . . . Level 4 . | . . . . . . . . . . . . . Level 5 . | . . . . . . . . . . . . . High Security . | . . . . . . . . . . . . . Max Security . | . . . . . . . . . . . . . Peak Influence 779 | . 125 77 141 206 69 457 779 468 512 196 105 65 Initial 403 | . . 18 7 47 69 . 312 403 219 156 105 35 Average 140 | . 62 33 57 62 18 241 602 402 381 170 44 33 Influence Increases 4051 | . 205 281 471 763 36 623 487 185 582 105 223 90 Destroy 0b10 Robot/C 1860 | . 160 160 300 400 . 200 220 80 280 . 60 . Destroy 0b10 Robot/NC 155 | . 5 25 65 35 . 10 . . 15 . . . Destroy Leader 434 | . 40 76 90 86 . 52 10 20 50 . 10 . Allied During Kill 646 | . . . . . . 214 209 62 161 . . . Successful Hack 66 | . . . . 31 . 30 . . . . 5 . Disable Machine 165 | . . 15 . 30 . 90 . . . . 30 . Destroy Structure 335 | . . 5 16 31 36 27 33 23 16 105 43 . Partial Spotted 90 | . . . . 45 . . . . . . 30 15 Lose Combat Pursuer 300 | . . . . 105 . . 15 . 60 . 45 75 Influence Decreases 3986 | . 160 307 385 670 234 176 165 506 583 401 301 98 Entered New Map 1331 | . . 27 12 58 129 . 135 366 229 291 46 38 Time Decay 2159 | . 150 280 373 502 95 136 . 70 214 100 209 30 Lost Part 326 | . 10 . . 110 10 20 10 30 50 10 46 30 Lost Ally 170 | . . . . . . 20 20 40 90 . . . Squads Dispatched 27 | . 2 2 2 6 . 3 . 1 4 . 3 4 Investigation 9 | . . . 1 2 . 1 . . 2 . 1 2 Extermination 5 | . . . . 3 . 1 . . . . 1 . Reinforcement 12 | . 2 2 . 1 . 1 . 1 2 . 1 2 Assault . | . . . . . . . . . . . . . Garrison 1 | . . . 1 . . . . . . . . . Intercept . | . . . . . . . . . . . . . Searches Triggered . | . . . . . . . . . . . . . Construction Impeded 1 | . . . . . . . . . 1 . . . Haulers Reinforced 2 | . . . . . . 1 . . 1 . . . Active Scanning Responses . | . . . . . . . . . . . . . Cargo Convoy Interrupts 1 | . . . . 1 . . . . . . . . Stealth | -11 -10 -9 -8 -7 -7 -7 -7 -7 -6 -6 -6 -6 --------- Run | Yrd Mat Mat Mat Fac Was Fac Gar Fac Fac Was Fac Ext Distress Signals 10 | . 2 3 2 1 . . . . 1 . 1 . Communications Jammed . | . . . . . . . . . . . . . Distress Signals . | . . . . . . . . . . . . . Times Spotted 177 | . 13 15 22 36 6 6 9 4 21 6 12 27 Peak Tracking Total 19 | . 5 4 5 12 4 3 4 4 5 4 5 19 Tactical Retreats 9 | . . . . 3 . . 1 . 2 . 2 1 Traps | -11 -10 -9 -8 -7 -7 -7 -7 -7 -6 -6 -6 -6 ------- Run | Yrd Mat Mat Mat Fac Was Fac Gar Fac Fac Was Fac Ext Traps Triggered 14 | . . . 3 3 . 1 4 . 1 . 1 1 Indirectly . | . . . . . . . . . . . . . Trap Hack Attempts . | . . . . . . . . . . . . . Triggered . | . . . . . . . . . . . . . Disarmed . | . . . . . . . . . . . . . Reprogrammed . | . . . . . . . . . . . . . Reused . | . . . . . . . . . . . . . Traps Extracted . | . . . . . . . . . . . . . Installed . | . . . . . . . . . . . . . Triggered . | . . . . . . . . . . . . . Machines | -11 -10 -9 -8 -7 -7 -7 -7 -7 -6 -6 -6 -6 ---------- Run | Yrd Mat Mat Mat Fac Was Fac Gar Fac Fac Was Fac Ext Machines Disabled 11 | . . 1 . 2 . 6 . . . . 2 . Max in Single Turn 2 | . . 1 . 2 . 1 . . . . 2 . Machines Repaired . | . . . . . . . . . . . . . Machines Dismantled . | . . . . . . . . . . . . . Machines Sabotaged . | . . . . . . . . . . . . . Overloaded Fab Kills . | . . . . . . . . . . . . . Hacking | -11 -10 -9 -8 -7 -7 -7 -7 -7 -6 -6 -6 -6 --------- Run | Yrd Mat Mat Mat Fac Was Fac Gar Fac Fac Was Fac Ext Machines Accessed 13 | . . . . 4 . 3 . 1 3 . 1 1 Terminals 2 | . . . . 1 . . . . . . . 1 Fabricators 6 | . . . . 1 . 2 . 1 2 . . . Repair Stations 3 | . . . . 2 . . . . . . 1 . Recycling Units . | . . . . . . . . . . . . . Scanalyzers 1 | . . . . . . . . . 1 . . . Garrison Access 1 | . . . . . . 1 . . . . . . Total Hacks 33 | . . . . 9 . 7 . 2 8 . 4 3 Successful 13 | . . . . 6 . 2 . 1 2 . 2 . Failed 20 | . . . . 3 . 5 . 1 6 . 2 3 Catastrophic 6 | . . . . 1 . 2 . . 2 . . 1 Database Lockouts . | . . . . . . . . . . . . . Manual 1 | . . . . . . . . 1 . . . . Terminals 6 | . . . . 3 . . . . . . . 3 Fabricators 14 | . . . . 1 . 6 . 2 5 . . . Repair Stations 9 | . . . . 5 . . . . . . 4 . Recycling Units . | . . . . . . . . . . . . . Scanalyzers 3 | . . . . . . . . . 3 . . . Garrison Access 1 | . . . . . . 1 . . . . . . Terminal Hacks 1 | . . . . 1 . . . . . . . . Scanalyzer Index 1 | . . . . 1 . . . . . . . . Fabricator Hacks 3 | . . . . 1 . 1 . 1 . . . . Network Status 2 | . . . . 1 . . . 1 . . . . Build 1 | . . . . . . 1 . . . . . . Repair Station Hacks 6 | . . . . 4 . . . . . . 2 . Scan Component 3 | . . . . 2 . . . . . . 1 . Repair 3 | . . . . 2 . . . . . . 1 . Recycling Unit Hacks . | . . . . . . . . . . . . . Scanalyzer 2 | . . . . . . . . . 2 . . . Retrieve Study 2 | . . . . . . . . . 2 . . . Garrison Access Hacks 1 | . . . . . . 1 . . . . . . Unlock Access 1 | . . . . . . 1 . . . . . . Unauthorized Hacks . | . . . . . . . . . . . . . Terminals . | . . . . . . . . . . . . . Fabricators . | . . . . . . . . . . . . . Repair Stations . | . . . . . . . . . . . . . Recycling Units . | . . . . . . . . . . . . . Scanalyzers . | . . . . . . . . . . . . . Garrison Access . | . . . . . . . . . . . . . Data Cores Recovered 1 | . . . . . . . . . 1 . . . Used . | . . . . . . . . . . . . . Hacking Detections 8 | . . . . 2 . 2 . . 2 . 1 1 Full Trace Events 6 | . . . . 1 . 1 . . 2 . 1 1 Feedback Events . | . . . . . . . . . . . . . Feedback Blocked . | . . . . . . . . . . . . . Robot Schematics Acquired . | . . . . . . . . . . . . . Robots Built 2 | . . . . . . 2 . . . . . . Authchips . | . . . . . . . . . . . . . Time 58 | . . . . . . 58 . . . . . . Total Robot Build Rating 6 | . . . . . . 6 . . . . . . Part Schematics Acquired . | . . . . . . . . . . . . . Parts Built . | . . . . . . . . . . . . . Authchips . | . . . . . . . . . . . . . Time . | . . . . . . . . . . . . . Total Part Build Rating . | . . . . . . . . . . . . . Part Studies Acquired 1 | . . . . . . . . . 1 . . . Parts Repaired 2 | . . . . 2 . . . . . . . . Time 128 | . . . . 60 . . . . . . 68 . Parts Recycled . | . . . . . . . . . . . . . Recycled Matter . | . . . . . . . . . . . . . Retrieved Matter . | . . . . . . . . . . . . . Retrieved Components . | . . . . . . . . . . . . . Parts Scanalyzed . | . . . . . . . . . . . . . Part Schematics Acquired . | . . . . . . . . . . . . . Parts Damaged . | . . . . . . . . . . . . . Bothacking | -11 -10 -9 -8 -7 -7 -7 -7 -7 -6 -6 -6 -6 ------------ Run | Yrd Mat Mat Mat Fac Was Fac Gar Fac Fac Was Fac Ext Used RIF Installer . | . . . . . . . . . . . . . Robots Hacked . | . . . . . . . . . . . . . Non-combat . | . . . . . . . . . . . . . Combat . | . . . . . . . . . . . . . Robot Hacks Applied . | . . . . . . . . . . . . . Relay Couplers Released . | . . . . . . . . . . . . . Fabnet Peak Effective % . | . . . . . . . . . . . . . Robots Rewired . | . . . . . . . . . . . . . Allies Hacked . | . . . . . . . . . . . . . Hacks Repelled . | . . . . . . . . . . . . . Allies | -11 -10 -9 -8 -7 -7 -7 -7 -7 -6 -6 -6 -6 -------- Run | Yrd Mat Mat Mat Fac Was Fac Gar Fac Fac Was Fac Ext Total Allies 21 | . . . . . 19 2 . . . . . . Largest Group 19 | . . . . . 19 16 13 10 8 . . . Highest-Rated Group 465 | . . . . . 465 436 343 276 206 . . . Highest-Rated Ally 35 | . . . . . 35 35 35 35 31 . . . Total Orders . | . . . . . . . . . . . . . Ally Attacks 344 | . . . . . 144 55 53 6 86 . . . Total Damage 8496 | . . . . . 4197 833 1197 519 1750 . . . Kills 37 | . . . . . 11 8 9 2 7 . . . Allies Corrupted . | . . . . . . . . . . . . . Allies Melted 1 | . . . . . . 1 . . . . . . Intel | -11 -10 -9 -8 -7 -7 -7 -7 -7 -6 -6 -6 -6 ------- Run | Yrd Mat Mat Mat Fac Was Fac Gar Fac Fac Was Fac Ext Active Infowar (turns) . | . . . . . . . . . . . . . Robot Analysis Total . | . . . . . . . . . . . . . Derelict Logs Recovered . | . . . . . . . . . . . . . Drone Launches . | . . . . . . . . . . . . . Drone Recoveries . | . . . . . . . . . . . . . Exploration | -11 -10 -9 -8 -7 -7 -7 -7 -7 -6 -6 -6 -6 ------------- Run | Yrd Mat Mat Mat Fac Was Fac Gar Fac Fac Was Fac Ext Turns Passed 6287 | 130 385 724 937 1473 377 326 525 145 441 208 545 71 Spaces Moved 4599 | 78 170 319 437 864 436 268 345 57 521 282 583 239 Core 543 | 16 . . . 257 151 . . . 1 . 70 48 Treads 1594 | 62 170 318 437 607 . . . . . . . . Legs . | . . . . . . . . . . . . . Wheels . | . . . . . . . . . . . . . Hover 168 | . . 1 . . . . . . 161 . 6 . Flight 2294 | . . . . . 285 268 345 57 359 282 507 191 Fastest Speed 15 | 50 160 160 170 50 29 26 26 109 32 32 15 15 Average Speed 98 | 137 160 168 170 134 37 50 108 179 69 59 59 27 Slowest Speed 500 | 160 160 310 170 170 250 109 189 189 400 115 500 67 Overloaded Moves 937 | . . . . . . 166 345 57 138 129 27 75 Propulsion Burnouts 1 | . . . . . . . . . . . . 1 Robots Hopped 7 | . . . . . . . . . . . 2 5 Potential Cave-ins 4 | . . . . . . . . . . 2 2 . Cave-ins Triggered . | . . . . . . . . . . . . . Exploration Rate (%) 35 | 4 36 31 40 20 96 10 43 3 16 97 16 54 Regions Visited 12 Branch Regions 1 Pre-discovered Areas . | . . . . . . . . . . . . . Known Exits Taken 1 | . . . . . . 1 . . . . . . Unknown Exits Taken 6 | 1 1 1 1 . . . . 1 . . 1 . Scrap Searched . | . . . . . . . . . . . . . Spaces Dug 28 | . . . . . . . . . . 28 . . Terrain Destroyed 376 | . . . 13 27 1 4 2 7 13 233 76 . Melee . | . . . . . . . . . . . . . Projectile 39 | . . . 13 4 1 4 2 7 5 . 3 . AOE 337 | . . . . 23 . . . . 8 233 73 . Terrain Rammed . | . . . . . . . . . . . . . Walls Destroyed . | . . . . . . . . . . . . . Machines Disabled . | . . . . . . . . . . . . . Actions | -11 -10 -9 -8 -7 -7 -7 -7 -7 -6 -6 -6 -6 --------- Run | Yrd Mat Mat Mat Fac Was Fac Gar Fac Fac Was Fac Ext Total 5834 | 101 219 425 513 1070 638 437 471 85 565 302 770 238 Wait 693 | 12 . 14 7 111 147 147 59 22 5 2 163 4 Move 4576 | 77 169 318 436 864 435 267 344 56 521 281 578 230 Hop 6 | . . . . . . . . . . . 2 4 Pick Up 72 | 6 7 24 5 9 8 2 2 . 3 2 4 . Fast Attach 20 | . . . . 5 5 . . . 2 2 6 . Attach 56 | 6 3 10 3 8 9 3 3 . 4 1 6 . Detach 20 | . . 1 1 3 6 2 . . 3 . 4 . Swap 25 | . 1 8 4 2 3 . 3 . 1 1 2 . Drop 42 | . 1 11 3 11 9 1 . . 2 3 1 . Fire 279 | . 38 39 54 57 16 15 15 7 24 10 4 . Melee . | . . . . . . . . . . . . . Ram . | . . . . . . . . . . . . . Kick . | . . . . . . . . . . . . . Crush . | . . . . . . . . . . . . . Escape Stasis 45 | . . . . . . . 45 . . . . . Rewire . | . . . . . . . . . . . . . Trap . | . . . . . . . . . . . . . Miscellaneous . | . . . . . . . . . . . . . Route ------- -11/Scrapyard -10/Materials -9/Materials (discovered 2 exits: [*Mat] / [*Sto]) -8/Materials (discovered 2 exits: *Fac x2) -7/Factory -7/Waste -7/Factory -7/Garrison -7/Factory -6/Factory -6/Waste -6/Factory -6/Extension History --------- Turn | Location | Event 4 | -11/Scrapyard | Discovered new exit (range 16) 131 | -11/Scrapyard | Entered Materials 311 | -10/Materials | Build established: Mutant 346 | -10/Materials | Core integrity fell below 50% 463 | -10/Materials | Discovered new exit (range 16) 516 | -10/Materials | Entered another Materials area 516 | -9/Materials | Evolved 2 slots: Utility x1, Weapon x1 885 | -9/Materials | Discovered new exit (range 10) 1139 | -9/Materials | Discovered new exit (range 10) 1219 | -9/Materials | System corruption reached 10% 1240 | -9/Materials | Entered another Materials area 1240 | -8/Materials | Evolved 2 slots: Propulsion x1, Utility x1 1538 | -8/Materials | Discovered new exit (range 16) 1583 | -8/Materials | Build established: Tank 2102 | -8/Materials | Discovered new exit (range 15) 2159 | -8/Materials | Garrison activated, responded to threat 2177 | -8/Materials | Entered Factory 2177 | -7/Factory | Evolved 2 slots: Power x1, Weapon x1 2443 | -7/Factory | Build established: Gunner 2617 | -7/Factory | Repaired Corrupted Imp. Light Cannon 2892 | -7/Factory | Lost 3 parts (2u1w) 3112 | -7/Factory | Repaired Arm. Treads 3177 | -7/Factory | Build established: Scavenger-Gunner 3488 | -7/Factory | Cargo convoy interrupted 3513 | -7/Factory | Core integrity fell below 50% 3536 | -7/Factory | Lost 7 parts (2p1n3u1w) 3583 | -7/Factory | Discovered new exit (range 16) 3607 | -7/Factory | Core integrity fell below 20% 3650 | -7/Factory | Sucked down chute 3650 | -7/Factory | Entered Waste 3669 | -7/Waste | Spotted C-40 Crusher 3674 | -7/Waste | Spotted C-40 Crusher 3710 | -7/Waste | Spotted C-40 Crusher 3722 | -7/Waste | Spotted C-40 Crusher 3725 | -7/Waste | Spotted C-40 Crusher 3745 | -7/Waste | Discovered new exit (range 12) 3750 | -7/Waste | Warlord forces began an assault 3765 | -7/Waste | Allies destroyed C-40 Crusher 3768 | -7/Waste | Allies destroyed C-40 Crusher 3769 | -7/Waste | Spotted C-40 Crusher 3774 | -7/Waste | Allies destroyed C-40 Crusher 3782 | -7/Waste | Allies destroyed C-40 Crusher 3787 | -7/Waste | Allies destroyed C-40 Crusher 3796 | -7/Waste | Allies destroyed C-40 Crusher 3816 | -7/Waste | Lost 5 allies 4027 | -7/Waste | Entered Factory 4027 | -7/Factory | Accompanied by 14 allies 4048 | -7/Factory | Build established: Sprinter 4104 | -7/Factory | Fabricated H-55 Commando (x2) 4145 | -7/Factory | Found Prototype Launcher 4146 | -7/Factory | Identified Rocket Array 4150 | -7/Factory | Found Rocket Array 4267 | -7/Factory | Identified exit to Garrison 4353 | -7/Factory | Entered Garrison 4353 | -7/Garrison | Accompanied by 13 allies 4425 | -7/Garrison | Triggered checkpoint 4541 | -7/Garrison | Triggered checkpoint 4549 | -7/Garrison | Triggered checkpoint 4561 | -7/Garrison | Triggered checkpoint 4581 | -7/Garrison | Triggered checkpoint 4728 | -7/Garrison | Discovered new exit (range 8) 4878 | -7/Garrison | Entered Factory 4878 | -7/Factory | Accompanied by 10 allies 4882 | -7/Factory | Build established: Mutant 4962 | -7/Factory | Discovered new exit (range 11) 5022 | -7/Factory | Lost 3 parts (1p2u) 5023 | -7/Factory | Entered another Factory area 5023 | -6/Factory | Accompanied by 8 allies 5023 | -6/Factory | Evolved 2 slots: Propulsion x1, Utility x1 5195 | -6/Factory | Spotted B-75 Beast 5233 | -6/Factory | Destroyed B-75 Beast 5240 | -6/Factory | Lost 5 parts (1p1n3w) 5262 | -6/Factory | Lost 3 allies 5372 | -6/Factory | Lost 4 allies 5464 | -6/Factory | Manually triggered Chute Trap 5464 | -6/Factory | Sucked down chute 5464 | -6/Factory | Entered Waste 5470 | -6/Waste | Spotted C-40 Crusher 5478 | -6/Waste | Spotted C-40 Crusher 5479 | -6/Waste | EMP discharged 5484 | -6/Waste | Found Prototype Processor 5484 | -6/Waste | Identified Exp. Target Analyzer 5492 | -6/Waste | Destroyed C-40 Crusher 5497 | -6/Waste | Spotted C-40 Crusher 5501 | -6/Waste | Destroyed C-40 Crusher 5504 | -6/Waste | Spotted C-40 Crusher 5504 | -6/Waste | Spotted C-40 Crusher 5507 | -6/Waste | Spotted C-40 Crusher 5508 | -6/Waste | Destroyed C-40 Crusher 5508 | -6/Waste | Destroyed C-40 Crusher 5527 | -6/Waste | Destroyed C-40 Crusher 5534 | -6/Waste | Destroyed C-40 Crusher 5540 | -6/Waste | Discovered new exit (range 11) 5579 | -6/Waste | EMP discharged 5579 | -6/Waste | System corruption reached 10% 5672 | -6/Waste | Entered Factory 6041 | -6/Factory | System corruption reached 30% 6088 | -6/Factory | Core integrity fell below 50% 6121 | -6/Factory | Lost 5 parts (2n2u1w) 6214 | -6/Factory | Discovered new exit (range 16) 6217 | -6/Factory | Entered Extension 6257 | -6/Extension | Spotted B-75 Beast 6259 | -6/Extension | Spotted B-75 Beast 6262 | -6/Extension | Core integrity fell below 20% 6288 | -6/Extension | Destroyed by G-50 Soldier with Heavy Laser Last Messages --------------- U-05 Engineer lays Concrete. D6&Z10J2FK L /%3 IU:IJ%RR U-05 Engineer lays Concrete. Penetrated by Slug. System corrupted: Slammed into ceiling. Imp. Surge Thruster destroyed. System corrupted by crushing effect (+1). Connecting with Door Terminal... Current location identified: Extension ALERT: Suspicious activity at Terminal E007. Dispatching Investigation squad. 0A9UBV|WNY7HD8VR::F8JPI 7QH0HBWO Imp. Surge Thruster destroyed. Imp. Deuterium Engine destroyed. Imp. Surge Thruster destroyed. Imp. Surge Thruster burned out. System corrupted: Matter fused (-7). Critical hit (Burn: +37). K-01 Serf destroyed. Critical hit (Burn: +37). Map ----- +----------------------------------------------------+ | ?????????????????????????????????????????????????? | | ?????????????????????????????????????????????????? | | ?????????????????????????????????????????????????? | | ?????????????????????????????????????????????????? | | ?????????????????????????????????????????????????? | | ?????????????????????????????????????????????????? | | ?????????????????????????????????????????????????? | | ?????????????????????????????????????????????????? | | ?????????????????????????????????????????????????? | | ?????????????????????????????????????????????????? | | ?????????????????????????????????????????????????? | | ?????????????????????????????????????????????????? | | ?????????????????????????????????????????????????? | | ?????????????????????????????????????????????????? | | ?????????????????????????????????????????????????? | | ?????????????????????????????????????????????????? | | ?????????????????????????????????????????????????? | | ?????????????????????????????????????????????????? | | ?????????????????????????????????????????????????? | | ?????????????????????????????????????????????????? | | ?????????????????????????????????????????????????? | | ?????????????????????????????????????????????????? | | ?????????????????????????????????????????????????? | | ######################################???????????? | | ????????? | | @ ????????? | | = A ????????? | | %g g gg g ????????? | | ! u g g g gR gg ?????????? | | ########################################?????????? | | ?????????????????????????????????????????????????? | | ?????????????????????????????????????????????????? | | ?????????????????????????????????????????????????? | | ?????????????????????????????????????????????????? | | ?????????????????????????????????????????????????? | | ?????????????????????????????????????????????????? | | ?????????????????????????????????????????????????? | | | | | | | | | | | | | | | | | | | | | | | | | | | +----------------------------------------------------+ Best States ------------- Heat Dissipation 64 Energy Generation 27 Energy Capacity 325 Matter Stores 450 Matter Capacity 450 Sight Range 16 Terrain Scan Density 10 Armor Coverage 225 Propulsion Shielding 33 Weapon Cycling 15 Evasion (%) 66 Armor Integrity Analysis 30 Recoil Reduction 3 Kinecelleration 30 Authchip Count 2 Item Schematics ----------------- None Robot Schematics ------------------ None Fabricated ------------ H-55 Commando | x2 | -7/Factory | Preloaded Repaired ---------- Imp. Light Cannon | 94% | -7/Factory | Corrupted Arm. Treads | 17% | -7/Factory Studied --------- Hvy. Plasma Cannon | -6/Factory | Hacked Alien Tech Used ----------------- None Achievements -------------- None Challenges ------------ None Game ------ Seed SurveybotAntimatterLaser Manual? 0 Play Time 01:06:49 Cumulative 225.5 hours Start 2025.12.28 @ 16:54:40 End 2026.01.03 @ 23:25:14 Sessions 2 Manual Loads 0 Difficulty Rogue Special Mode None Game No. 633 Rogue 632 Adventurer 1 Explorer 0 Win Type - Total 0 Types 0/0/0/0/0/0/0/0/0/0 Lore% 65 Gallery% 63 Achievement% 39 Wizard Run 0 Options --------- Layout 1 ASCII 0 Keyboard 0 Movement Mouse Keybinds 0 Fullscreen 1 Font 24/Smallcaps Map View 50x35 Zoom Use 0% Tactical HUD 0 Map Filters NONE Filters NONE Steam 1 RUN: 04f2fc26-e3a4-40a9-99a5-44b1ebf3acee